[Event "10th Cesme Open-B 2024"]
[Site "Cesme"]
[Date "2024.06.25"]
[Round "3"]
[White "Korkmaz, Necmettin"]
[Black "Sevig, Mert Can"]
[Result "1-0"]
[ECO "B38"]
[WhiteElo "1999"]
[BlackElo "1881"]
[Annotator "RC"]
[PlyCount "67"]
[EventDate "2024.06.23"]
[EventType "swiss"]
[EventCountry "TUR"]
[SourceTitle "playchess.com"]
[Source "ChessBase"]
[SourceQuality "1"]
[TimeControl "5400+30"]

1. e4 {[%emt 0:34:00]} c5 {[%emt 0:14:00]} 2. Nf3 {[%emt 0:00:30]} g6 {[%emt 0:00:30]} 3. d4 {[%emt 0:00:30]} cxd4 {[%emt 0:00:30]} 4. Nxd4 {[%emt 0:00:30]} Bg7 {[%emt 0:00:30]} 5. c4 {[%emt 0:00:30]} Nc6 {[%emt 0:00:30]} 6. Be3 {[%emt 0:00:30]} Nf6 {[%emt 0:00:30]} 7. Nc3 {[%emt 0:00:30]} d6 {[%emt 0:00:30]} 8. Be2 {[%emt 0:00:30]} O-O {[%emt 0:00:30]} 9. O-O {[%emt 0:00:30]} Bd7 {[%emt 0:00:30]} 10. Rb1 {[%emt 0:00:30]} Nxd4 {[%emt 0:00:30]} 11. Bxd4 {[%emt 0:00:30]} Bc6 {[%emt 0:00:30]} 12. Qc2 {[%emt 0:00:30]} a5 {[%emt 0:00:30]} 13. b3 {[%emt 0:00:30]} Nd7 {[%emt 0:00:30]} 14. Bxg7 {[%emt 0:00:30]} Kxg7 {[%emt 0:00:30]} 15. Rfd1 {[%emt 0:00:30]} Qc7 {[%emt 0:00:30]} 16. h4 {[%emt 0:00:30]} Nc5 {[%emt 0:00:30]} 17. Nd5 {[%emt 0:01:30]} Bxd5 {[%emt 0:00:30]} 18. cxd5 {[%emt 0:03:30]} Qb6 {[%emt 0:07:30]} 19. h5 {[%emt 0:06:30]} f6 {[%emt 0:03:30]} 20. a3 {[%emt 0:02:30]} Rfc8 {[%emt 0:21:30]} 21. Bg4 {[%emt 0:04:30]} Rc7 {[%emt 0:00:30]} 22. Qe2 {[%emt 0:06:30]} Nxb3 {[%emt 0:04:30]} 23. hxg6 {[%emt 0:04:30]} hxg6 {[%emt 0:00:30]} 24. Bf5 {[%emt 0:12:00]} Rh8 {[%emt 0:11:30]} 25. Qg4 {[%emt 0:11:01]} g5 {[%emt 0:00:30]} 26. Bd7 {[%emt 0:01:37]} Rc2 {[%emt 0:01:30]} 27. Rf1 {[%emt 0:01:07]} Rh4 {[%emt 0:03:30]} 28. Qf3 {[%emt 0:02:00]} a4 {[%emt 0:21:12]} 29. g3 {[%emt 0:00:16]} g4 {[%emt 0:03:01]} 30. Bxg4 {[%emt 0:01:05]} Rh6 {[%emt 0:01:06]} 31. Bf5 {[%emt 0:01:43]} Qd8 {[%emt 0:02:06]} 32. Qg4+ {[%emt 0:00:46]} Kh8 {[%emt 0:00:04]} 33. Kg2 {[%emt 0:00:11]} Qf8 {[%emt 0:01:55]} 34. Rh1 {[%emt 0:00:08]} 1-0

[Event "10th Cesme Open-B 2024"]
[Site "Cesme"]
[Date "2024.06.25"]
[Round "3"]
[White "Yigit, Ahmet Yasir"]
[Black "Hamurcu, Mehmet"]
[Result "0-1"]
[ECO "A49"]
[WhiteElo "1964"]
[BlackElo "1866"]
[Annotator "RC"]
[PlyCount "84"]
[EventDate "2024.06.23"]
[EventType "swiss"]
[EventCountry "TUR"]
[SourceTitle "playchess.com"]
[Source "ChessBase"]
[SourceQuality "1"]
[TimeControl "5400+30"]

1. Nf3 {[%emt 0:01:00]} c5 {[%emt 0:03:00]} 2. g3 {[%emt 0:01:30]} Nc6 {[%emt 0:01:30]} 3. d4 {[%emt 0:00:30]} cxd4 {[%emt 0:00:30]} 4. Nxd4 {[%emt 0:00:00]} g6 {[%emt 0:00:30]} 5. Bg2 {[%emt 0:00:00]} Bg7 {[%emt 0:00:30]} 6. c3 {[%emt 0:01:30]} Nf6 {[%emt 0:01:30]} 7. O-O {[%emt 0:00:30]} O-O {[%emt 0:00:30]} 8. b3 {[%emt 0:02:30]} d5 {[%emt 0:01:30]} 9. Bb2 {[%emt 0:00:30]} Ne4 {[%emt 0:08:30]} 10. Na3 {[%emt 0:08:30]} e5 {[%emt 0:09:30]} 11. Nxc6 {[%emt 0:00:30]} bxc6 {[%emt 0:00:00]} 12. c4 {[%emt 0:00:30]} Be6 {[%emt 0:00:00]} 13. Qc2 {[%emt 0:02:30]} Bf5 {[%emt 0:18:30]} 14. Qc1 {[%emt 0:00:30]} Qa5 {[%emt 0:02:30]} 15. Rd1 {[%emt 0:07:30]} Rac8 {[%emt 0:01:30]} 16. Nb1 {[%emt 0:02:30]} Rfd8 {[%emt 0:10:30]} 17. Nc3 {[%emt 0:03:30]} Nf6 {[%emt 0:07:30]} 18. Na4 {[%emt 0:05:30]} d4 {[%emt 0:00:30]} 19. Qd2 {[%emt 0:05:30]} Qxd2 {[%emt 0:04:30]} 20. Rxd2 {[%emt 0:00:30]} c5 {[%emt 0:01:30]} 21. Ba3 {[%emt 0:00:00]} Nd7 {[%emt 0:07:42]} 22. Bb7 {[%emt 0:11:00]} Rc7 {[%emt 0:01:42]} 23. Bd5 {[%emt 0:02:30]} Rdc8 {[%emt 0:01:16]} 24. Bf3 {[%emt 0:02:30]} e4 {[%emt 0:02:48]} 25. Bg2 {[%emt 0:04:30]} e3 {[%emt 0:00:43]} 26. Rdd1 {[%emt 0:00:30]} Bc2 {[%emt 0:07:38]} 27. Rdc1 {[%emt 0:01:30]} d3 {[%emt 0:00:18]} 28. Bb2 {[%emt 0:00:30]} exf2+ {[%emt 0:00:30]} 29. Kxf2 {[%emt 0:00:00]} Bh6 {[%emt 0:00:04]} 30. Rf1 {[%emt 0:07:00]} dxe2 {[%emt 0:01:51]} 31. Kxe2 {[%emt 0:06:30]} Re8+ {[%emt 0:00:30]} 32. Kf2 {[%emt 0:00:00]} Be3+ {[%emt 0:00:00]} 33. Ke2 {[%emt 0:00:00]} Nb6 {[%emt 0:01:51]} 34. Bc3 {[%emt 0:07:36]} Nxa4 {[%emt 0:03:26]} 35. bxa4 {[%emt 0:01:02]} Rce7 {[%emt 0:00:20]} 36. Bf3 {[%emt 0:02:14]} Bxa4 {[%emt 0:01:13]} 37. Kd3 {[%emt 0:01:19]} Bd7 {[%emt 0:00:49]} 38. g4 {[%emt 0:02:43]} Rd8 {[%emt 0:00:55]} 39. Bf6 {[%emt 0:01:57]} Bf5+ {[%emt 0:01:10]} 40. Kc3 {[%emt 0:02:06]} Bd2+ {[%emt 0:00:35]} 41. Kb3 {[%emt 0:00:46]} Rb8+ {[%emt 0:00:25]} 42. Ka3 {[%emt 0:01:32]} Re3+ {[%emt 0:00:08]} 0-1

[Event "10th Cesme Open-B 2024"]
[Site "Cesme"]
[Date "2024.06.25"]
[Round "3"]
[White "Yilmaz, Kerem Tuna"]
[Black "Buyuk, Ecrin Efsa"]
[Result "1-0"]
[ECO "A51"]
[WhiteElo "1962"]
[BlackElo "1816"]
[Annotator "RC"]
[PlyCount "90"]
[EventDate "2024.06.23"]
[EventType "swiss"]
[EventCountry "TUR"]
[SourceTitle "playchess.com"]
[Source "ChessBase"]
[SourceQuality "1"]
[TimeControl "5400+30"]

1. e4 {[%emt 0:01:00]} e6 {[%emt 0:01:00]} 2. d4 {[%emt 0:00:30]} d5 {[%emt 0:00:00]} 3. exd5 {[%emt 0:01:30]} exd5 {[%emt 0:00:00]} 4. Nf3 {[%emt 0:00:30]} Nf6 {[%emt 0:01:30]} 5. c4 {[%emt 0:04:30]} Bb4+ {[%emt 0:11:30]} 6. Bd2 {[%emt 0:13:30]} Bxd2+ {[%emt 0:00:30]} 7. Nbxd2 {[%emt 0:00:30]} O-O {[%emt 0:00:00]} 8. Be2 {[%emt 0:00:30]} Nc6 {[%emt 0:21:00]} 9. c5 {[%emt 0:18:30]} Nh5 {[%emt 0:05:30]} 10. O-O {[%emt 0:07:30]} Nf4 {[%emt 0:00:30]} 11. Bb5 {[%emt 0:01:30]} Ne7 {[%emt 0:03:30]} 12. Re1 {[%emt 0:03:30]} a6 {[%emt 0:09:30]} 13. Bf1 {[%emt 0:09:30]} Nc6 {[%emt 0:00:30]} 14. Nb3 {[%emt 0:02:30]} Bg4 {[%emt 0:05:30]} 15. h3 {[%emt 0:10:30]} Bh5 {[%emt 0:00:30]} 16. g3 {[%emt 0:01:30]} Ne6 {[%emt 0:05:30]} 17. Bg2 {[%emt 0:06:48]} Qf6 {[%emt 0:08:30]} 18. g4 {[%emt 0:02:46]} Bg6 {[%emt 0:00:00]} 19. Ne5 {[%emt 0:00:08]} Nf4 {[%emt 0:09:23]} 20. Nd7 {[%emt 0:01:09]} Qg5 {[%emt 0:00:13]} 21. Nxf8 {[%emt 0:01:11]} Rxf8 {[%emt 0:00:02]} 22. Re3 {[%emt 0:10:19]} Nxg2 {[%emt 0:09:56]} 23. Kxg2 {[%emt 0:00:30]} f5 {[%emt 0:00:30]} 24. Nd2 {[%emt 0:00:30]} Nxd4 {[%emt 0:00:30]} 25. Nf3 {[%emt 0:00:30]} Nxf3 {[%emt 0:00:30]} 26. Qxd5+ {[%emt 0:00:30]} Bf7 {[%emt 0:00:30]} 27. Qxf3 {[%emt 0:00:54]} fxg4 {[%emt 0:02:52]} 28. Qxg4 {[%emt 0:00:08]} Qxc5 {[%emt 0:02:33]} 29. Rae1 {[%emt 0:00:48]} Qc2 {[%emt 0:00:55]} 30. R3e2 {[%emt 0:01:31]} Qc6+ {[%emt 0:00:36]} 31. Kg1 {[%emt 0:00:00]} Qf6 {[%emt 0:00:49]} 32. Qg3 {[%emt 0:00:22]} c5 {[%emt 0:01:17]} 33. b3 {[%emt 0:00:16]} b5 {[%emt 0:01:02]} 34. Re7 {[%emt 0:00:26]} c4 {[%emt 0:00:17]} 35. bxc4 {[%emt 0:00:30]} bxc4 {[%emt 0:00:00]} 36. Rc7 {[%emt 0:00:30]} h5 {[%emt 0:00:00]} 37. Re5 {[%emt 0:00:48]} Qd6 {[%emt 0:01:50]} 38. Ree7 {[%emt 0:00:36]} Qd1+ {[%emt 0:00:08]} 39. Kh2 {[%emt 0:00:06]} Qd4 {[%emt 0:00:36]} 40. Qe3 {[%emt 0:00:22]} Qd6+ {[%emt 0:00:23]} 41. Qe5 {[%emt 0:00:15]} Qb6 {[%emt 0:00:22]} 42. Rxf7 {[%emt 0:01:34]} Rxf7 {[%emt 0:00:30]} 43. Rc8+ {[%emt 0:00:00]} Kh7 {[%emt 0:00:28]} 44. Qxh5+ {[%emt 0:00:15]} Qh6 {[%emt 0:00:00]} 45. Qxf7 {[%emt 0:00:17]} Qc6 {[%emt 0:00:00]} 1-0

[Event "10th Cesme Open-B 2024"]
[Site "Cesme"]
[Date "2024.06.25"]
[Round "3"]
[White "Tezcan, Alper"]
[Black "Yildiz, Elif Zeren"]
[Result "1-0"]
[ECO "B96"]
[WhiteElo "1936"]
[BlackElo "1879"]
[Annotator "RC"]
[PlyCount "77"]
[EventDate "2024.06.23"]
[EventType "swiss"]
[EventCountry "TUR"]
[SourceTitle "playchess.com"]
[Source "ChessBase"]
[SourceQuality "1"]
[TimeControl "5400+30"]

1. e4 {[%emt 0:01:00]} c5 {[%emt 0:01:00]} 2. Nf3 {[%emt 0:00:30]} d6 {[%emt 0:00:00]} 3. d4 {[%emt 0:00:00]} cxd4 {[%emt 0:00:00]} 4. Nxd4 {[%emt 0:00:00]} Nf6 {[%emt 0:00:30]} 5. Nc3 {[%emt 0:00:30]} a6 {[%emt 0:00:00]} 6. Bg5 {[%emt 0:00:00]} e6 {[%emt 0:00:00]} 7. f4 {[%emt 0:01:00]} Nbd7 {[%emt 0:00:30]} 8. Qe2 {[%emt 0:00:00]} Qc7 {[%emt 0:03:30]} 9. O-O-O {[%emt 0:00:00]} Be7 {[%emt 0:00:30]} 10. g4 {[%emt 0:08:30]} h6 {[%emt 0:04:30]} 11. Bh4 {[%emt 0:36:30]} Nb6 {[%emt 0:25:30]} 12. Bg3 {[%emt 0:11:30]} Nfd7 {[%emt 0:10:30]} 13. h4 {[%emt 0:07:30]} Nc5 {[%emt 0:03:30]} 14. Bg2 {[%emt 0:07:30]} Bd7 {[%emt 0:08:30]} 15. Rhf1 {[%emt 0:02:30]} Nca4 {[%emt 0:04:30]} 16. Nxa4 {[%emt 0:01:30]} Nxa4 {[%emt 0:00:30]} 17. e5 {[%emt 0:03:56]} d5 {[%emt 0:03:30]} 18. Rf3 {[%emt 0:09:24]} Bc5 {[%emt 0:05:30]} 19. f5 {[%emt 0:01:18]} Bxd4 {[%emt 0:06:30]} 20. Rxd4 {[%emt 0:00:30]} Nxb2 {[%emt 0:00:30]} 21. Rb3 {[%emt 0:00:30]} Nc4 {[%emt 0:00:30]} 22. Bxd5 {[%emt 0:00:30]} Na5 {[%emt 0:00:30]} 23. Rbd3 {[%emt 0:00:30]} Nc6 {[%emt 0:00:30]} 24. Bxc6 {[%emt 0:00:30]} Bxc6 {[%emt 0:00:30]} 25. Qd2 {[%emt 0:06:39]} Qe7 {[%emt 0:12:29]} 26. Qa5 {[%emt 0:00:37]} O-O {[%emt 0:01:57]} 27. Qd2 {[%emt 0:00:27]} Bb5 {[%emt 0:04:21]} 28. f6 {[%emt 0:00:29]} gxf6 {[%emt 0:01:00]} 29. Qxh6 {[%emt 0:00:30]} fxe5 {[%emt 0:01:50]} 30. Bxe5 {[%emt 0:00:09]} f6 {[%emt 0:00:36]} 31. Bd6 {[%emt 0:00:39]} Qf7 {[%emt 0:00:17]} 32. Rf3 {[%emt 0:00:14]} Bc6 {[%emt 0:00:40]} 33. Rf2 {[%emt 0:00:58]} e5 {[%emt 0:00:35]} 34. Bxf8 {[%emt 0:00:09]} Rxf8 {[%emt 0:00:07]} 35. Rd6 {[%emt 0:00:40]} Qxa2 {[%emt 0:01:25]} 36. Qg6+ {[%emt 0:00:30]} Kh8 {[%emt 0:00:00]} 37. Rfxf6 {[%emt 0:00:39]} Qa3+ {[%emt 0:00:18]} 38. Kd2 {[%emt 0:00:30]} Qb4+ {[%emt 0:00:30]} 39. c3 {[%emt 0:00:07]} 1-0

[Event "10th Cesme Open-B 2024"]
[Site "Cesme"]
[Date "2024.06.25"]
[Round "3"]
[White "Uzdemir, Ali Poyraz"]
[Black "Selvi, Kaan"]
[Result "1-0"]
[ECO "B06"]
[WhiteElo "1936"]
[BlackElo "1871"]
[Annotator "RC"]
[PlyCount "75"]
[EventDate "2024.06.23"]
[EventType "swiss"]
[EventCountry "TUR"]
[SourceTitle "playchess.com"]
[Source "ChessBase"]
[SourceQuality "1"]
[TimeControl "5400+30"]

1. e4 {[%emt 0:01:00]} g6 {[%emt 0:01:00]} 2. d4 {[%emt 0:00:00]} Bg7 {[%emt 0:00:00]} 3. Nf3 {[%emt 0:00:00]} c6 {[%emt 0:00:00]} 4. Bd3 {[%emt 0:01:30]} d5 {[%emt 0:01:30]} 5. e5 {[%emt 0:00:30]} Bg4 {[%emt 0:02:30]} 6. O-O {[%emt 0:04:30]} e6 {[%emt 0:03:30]} 7. Nbd2 {[%emt 0:03:30]} Ne7 {[%emt 0:05:30]} 8. h3 {[%emt 0:00:30]} Bxf3 {[%emt 0:00:30]} 9. Nxf3 {[%emt 0:00:30]} Qb6 {[%emt 0:03:30]} 10. Bg5 {[%emt 0:04:30]} Nf5 {[%emt 0:03:30]} 11. Bxf5 {[%emt 0:04:30]} gxf5 {[%emt 0:01:30]} 12. Qd2 {[%emt 0:01:30]} Nd7 {[%emt 0:03:30]} 13. Rfe1 {[%emt 0:02:30]} Bf8 {[%emt 0:06:30]} 14. b3 {[%emt 0:04:30]} h6 {[%emt 0:03:30]} 15. Bh4 {[%emt 0:01:30]} Rg8 {[%emt 0:00:30]} 16. Qe3 {[%emt 0:06:30]} Rg6 {[%emt 0:04:30]} 17. c4 {[%emt 0:04:30]} Be7 {[%emt 0:04:30]} 18. Rac1 {[%emt 0:01:30]} Bxh4 {[%emt 0:06:30]} 19. Nxh4 {[%emt 0:00:30]} Rg5 {[%emt 0:00:00]} 20. Nf3 {[%emt 0:04:30]} Rg6 {[%emt 0:01:00]} 21. Rc2 {[%emt 0:10:30]} Qa5 {[%emt 0:10:30]} 22. Rec1 {[%emt 0:06:30]} Ke7 {[%emt 0:00:30]} 23. Qf4 {[%emt 0:03:30]} Rag8 {[%emt 0:09:30]} 24. g3 {[%emt 0:06:30]} Nb8 {[%emt 0:11:14]} 25. b4 {[%emt 0:00:30]} Qd8 {[%emt 0:00:30]} 26. Qh4+ {[%emt 0:00:30]} Ke8 {[%emt 0:00:30]} 27. Qxd8+ {[%emt 0:00:30]} Kxd8 {[%emt 0:00:30]} 28. cxd5 {[%emt 0:00:30]} exd5 {[%emt 0:00:30]} 29. Nh4 {[%emt 0:00:30]} Rg5 {[%emt 0:00:30]} 30. Ng2 {[%emt 0:00:30]} h5 {[%emt 0:00:30]} 31. Kh2 {[%emt 0:00:30]} R5g6 {[%emt 0:00:30]} 32. Nf4 {[%emt 0:00:30]} Rg5 {[%emt 0:00:30]} 33. b5 {[%emt 0:00:30]} Re8 {[%emt 0:00:30]} 34. bxc6 {[%emt 0:00:30]} bxc6 {[%emt 0:00:30]} 35. Rb2 {[%emt 0:06:30]} Ke7 {[%emt 0:16:51]} 36. Rb7+ {[%emt 0:00:30]} Kf8 {[%emt 0:00:10]} 37. Rcb1 {[%emt 0:00:30]} Nd7 {[%emt 0:00:48]} 38. Rxa7 {[%emt 0:00:30]} 1-0

[Event "10th Cesme Open-B 2024"]
[Site "Cesme"]
[Date "2024.06.25"]
[Round "3"]
[White "Yasin, Hur"]
[Black "Akkara, Omer"]
[Result "0-1"]
[ECO "D01"]
[WhiteElo "1924"]
[BlackElo "1829"]
[Annotator "NA RC"]
[PlyCount "76"]
[EventDate "2024.06.23"]
[EventType "swiss"]
[EventCountry "TUR"]
[SourceTitle "playchess.com"]
[Source "ChessBase"]
[SourceQuality "1"]
[TimeControl "5400+30"]

1. d4 {[%emt 0:02:00]} Nf6 {[%emt 0:01:00]} 2. Bf4 {[%emt 0:00:30]} g6 {[%emt 0:00:00]} 3. Nc3 {[%emt 0:01:30]} d5 {[%emt 0:00:00]} 4. Qd2 {[%emt 0:00:30]} Bg7 {[%emt 0:00:00]} 5. Bh6 {[%emt 0:02:30]} O-O {[%emt 0:01:00]} 6. h4 {[%emt 0:00:30] [#]} c5 $11 {[%emt 0:01:30]} 7. Nf3 {[%emt 0:10:30]} cxd4 {[%emt 0:00:30]} 8. Nxd4 {[%emt 0:00:30]} e5 {[%emt 0:00:30]} 9. Nb3 {[%emt 0:08:30]} d4 {[%emt 0:01:30]} 10. Bxg7 {[%emt 0:00:30]} Kxg7 {[%emt 0:00:30]} 11. O-O-O {[%emt 0:00:00]} Nc6 {[%emt 0:00:00]} 12. Nb5 {[%emt 0:02:00]} a6 {[%emt 0:01:00]} 13. Na3 {[%emt 0:00:30]} Ne4 {[%emt 0:00:30]} 14. Qe1 {[%emt 0:00:30]} Qe7 {[%emt 0:06:30]} 15. f3 {[%emt 0:02:30]} Nc3 {[%emt 0:00:30]} 16. bxc3 {[%emt 0:02:30]} Qxa3+ {[%emt 0:00:30]} 17. Kb1 {[%emt 0:00:30]} a5 {[%emt 0:00:30]} 18. cxd4 {[%emt 0:23:30]} a4 {[%emt 0:00:30]} 19. Nc1 {[%emt 0:03:30]} Ra6 {[%emt 0:00:30]} 20. c3 {[%emt 0:00:30]} Rb6+ {[%emt 0:01:30]} 21. Kc2 {[%emt 0:00:00]} exd4 {[%emt 0:00:30]} 22. Rd3 {[%emt 0:07:00]} Bf5 {[%emt 0:00:30]} 23. e4 {[%emt 0:00:30]} dxe3 {[%emt 0:01:30]} 24. Qxe3 {[%emt 0:00:00]} Bxd3+ {[%emt 0:01:30]} 25. Bxd3 {[%emt 0:00:00]} Rb2+ {[%emt 0:00:30]} 26. Kd1 {[%emt 0:01:30]} Qxc3 {[%emt 0:00:00]} 27. h5 {[%emt 0:01:30]} Qe5 {[%emt 0:01:00]} 28. h6+ {[%emt 0:13:18]} Kg8 {[%emt 0:00:00]} 29. Be4 {[%emt 0:00:15]} Rd8+ {[%emt 0:02:00]} 30. Nd3 {[%emt 0:02:01]} Nb4 {[%emt 0:01:30]} 31. Qb6 {[%emt 0:00:45]} Qd4 {[%emt 0:00:30]} 32. Qxd4 {[%emt 0:01:42]} Rxd4 {[%emt 0:00:30]} 33. Kc1 {[%emt 0:00:00]} Nxd3+ {[%emt 0:01:30]} 34. Bxd3 {[%emt 0:00:24]} Rxa2 {[%emt 0:00:00]} 35. Re1 {[%emt 0:00:27]} Kf8 {[%emt 0:00:00]} 36. Kb1 {[%emt 0:02:01]} Rxg2 {[%emt 0:00:30]} 37. Be4 {[%emt 0:00:00]} f5 {[%emt 0:00:00]} 38. Bc2 {[%emt 0:00:20]} Rb4+ {[%emt 0:00:00]} 0-1

[Event "10th Cesme Open-B 2024"]
[Site "Cesme"]
[Date "2024.06.25"]
[Round "3"]
[White "Hasirci, Ozgur Deniz"]
[Black "Yekeler, Kerem Sarp"]
[Result "1-0"]
[ECO "B52"]
[WhiteElo "1903"]
[BlackElo "1898"]
[Annotator "RC"]
[PlyCount "87"]
[EventDate "2024.06.23"]
[EventType "swiss"]
[EventCountry "TUR"]
[SourceTitle "playchess.com"]
[Source "ChessBase"]
[SourceQuality "1"]
[TimeControl "5400+30"]

1. e4 {[%emt 0:01:00]} c5 {[%emt 0:01:00]} 2. Nf3 {[%emt 0:00:00]} d6 {[%emt 0:00:00]} 3. Bb5+ {[%emt 0:01:00]} Bd7 {[%emt 0:00:00]} 4. Bxd7+ {[%emt 0:00:00]} Qxd7 {[%emt 0:00:00]} 5. c4 {[%emt 0:00:00]} Nc6 {[%emt 0:01:00]} 6. d4 {[%emt 0:00:30]} cxd4 {[%emt 0:00:30]} 7. Nxd4 {[%emt 0:00:30]} Nf6 {[%emt 0:00:30]} 8. Nc3 {[%emt 0:00:30]} g6 {[%emt 0:00:30]} 9. f3 {[%emt 0:00:00]} Bg7 {[%emt 0:00:00]} 10. Be3 {[%emt 0:00:00]} O-O {[%emt 0:00:00]} 11. Rc1 {[%emt 0:01:30]} Rac8 {[%emt 0:00:30]} 12. b3 {[%emt 0:00:30]} a6 {[%emt 0:00:30]} 13. O-O {[%emt 0:02:30]} Nxd4 {[%emt 0:03:30]} 14. Bxd4 {[%emt 0:00:30]} b5 {[%emt 0:00:30]} 15. cxb5 {[%emt 0:00:30]} axb5 {[%emt 0:00:00]} 16. Qd3 {[%emt 0:00:30]} b4 {[%emt 0:03:00]} 17. Na4 {[%emt 0:03:30]} Qb7 {[%emt 0:19:30]} 18. Nb6 {[%emt 0:04:30]} Nh5 {[%emt 0:05:30]} 19. Be3 {[%emt 0:09:30]} Nf4 {[%emt 0:15:30]} 20. Qb5 {[%emt 0:03:30]} Ra8 {[%emt 0:00:30]} 21. Rc2 {[%emt 0:09:30]} Qa6 {[%emt 0:26:30]} 22. Qxb4 {[%emt 0:03:30]} Ne2+ {[%emt 0:00:00]} 23. Kf2 {[%emt 0:00:30]} Nd4 {[%emt 0:00:00]} 24. Rd2 {[%emt 0:04:30]} Nc6 {[%emt 0:09:26]} 25. Qc4 {[%emt 0:01:30]} Qxc4 {[%emt 0:00:11]} 26. Nxc4 {[%emt 0:00:00]} Rfb8 {[%emt 0:00:42]} 27. Rc1 {[%emt 0:01:00]} Ra6 {[%emt 0:01:10]} 28. Kf1 {[%emt 0:06:30]} h6 {[%emt 0:00:37]} 29. Bf2 {[%emt 0:00:30]} h5 {[%emt 0:01:45]} 30. Ne3 {[%emt 0:06:30]} Nb4 {[%emt 0:00:52]} 31. a4 {[%emt 0:00:30]} Bh6 {[%emt 0:00:42]} 32. Rc7 {[%emt 0:04:30]} Nc6 {[%emt 0:00:47]} 33. Rd3 {[%emt 0:00:30]} Bxe3 {[%emt 0:03:55]} 34. Bxe3 {[%emt 0:00:30]} Na5 {[%emt 0:00:00]} 35. Rcc3 {[%emt 0:08:30]} Nc6 {[%emt 0:00:58]} 36. Ke2 {[%emt 0:00:30]} f6 {[%emt 0:00:33]} 37. Rd5 {[%emt 0:01:30]} Kf7 {[%emt 0:02:05]} 38. Rb5 {[%emt 0:05:30]} Rc8 {[%emt 0:03:28]} 39. a5 {[%emt 0:02:30]} Ke6 {[%emt 0:00:21]} 40. b4 {[%emt 0:00:30]} Raa8 {[%emt 0:00:40]} 41. Rb6 {[%emt 0:00:30]} Ne5 {[%emt 0:00:20]} 42. Rxc8 {[%emt 0:00:30]} Rxc8 {[%emt 0:00:08]} 43. f4 {[%emt 0:01:30]} Rc2+ {[%emt 0:00:34]} 44. Kd1 {[%emt 0:00:30]} 1-0

[Event "10th Cesme Open-B 2024"]
[Site "Cesme"]
[Date "2024.06.25"]
[Round "3"]
[White "Yildiz, Talat"]
[Black "Ilgaz, Yusuf Kerem"]
[Result "1/2-1/2"]
[ECO "C58"]
[WhiteElo "1891"]
[BlackElo "1966"]
[Annotator "RC"]
[PlyCount "147"]
[EventDate "2024.06.23"]
[EventType "swiss"]
[EventCountry "TUR"]
[SourceTitle "playchess.com"]
[Source "ChessBase"]
[SourceQuality "1"]
[TimeControl "5400+30"]

1. e4 {[%emt 0:01:00]} e5 {[%emt 0:01:00]} 2. Nf3 {[%emt 0:00:30]} Nc6 {[%emt 0:00:30]} 3. Bc4 {[%emt 0:00:30]} Nf6 {[%emt 0:00:30]} 4. Ng5 {[%emt 0:00:30]} d5 {[%emt 0:00:30]} 5. exd5 {[%emt 0:00:00]} Na5 {[%emt 0:00:00]} 6. Bb5+ {[%emt 0:00:00]} Bd7 {[%emt 0:00:00]} 7. Bxd7+ {[%emt 0:06:30]} Qxd7 {[%emt 0:00:00]} 8. Nc3 {[%emt 0:08:30]} O-O-O {[%emt 0:05:00]} 9. d3 {[%emt 0:12:30]} Nxd5 {[%emt 0:03:30]} 10. Nxd5 {[%emt 0:16:30]} Qxd5 {[%emt 0:00:30]} 11. Qf3 {[%emt 0:00:30]} f6 {[%emt 0:10:30]} 12. Qxd5 {[%emt 0:09:30]} Rxd5 {[%emt 0:00:30]} 13. Ne4 {[%emt 0:00:00]} Nc6 {[%emt 0:04:30]} 14. Nc3 {[%emt 0:03:00]} Rd7 {[%emt 0:03:30]} 15. Be3 {[%emt 0:01:30]} Nd4 {[%emt 0:02:30]} 16. O-O-O {[%emt 0:03:30]} Nf5 {[%emt 0:08:30]} 17. g4 {[%emt 0:05:30]} Nh4 {[%emt 0:06:30]} 18. Ne4 {[%emt 0:04:30]} Be7 {[%emt 0:01:30]} 19. Ng3 {[%emt 0:01:30]} Rhd8 {[%emt 0:04:30]} 20. Nf5 {[%emt 0:04:49]} Nxf5 {[%emt 0:01:30]} 21. gxf5 {[%emt 0:00:11]} g6 {[%emt 0:05:30]} 22. fxg6 {[%emt 0:00:30]} hxg6 {[%emt 0:00:30]} 23. f4 {[%emt 0:03:29]} exf4 {[%emt 0:01:30]} 24. Bxf4 {[%emt 0:00:02]} Bc5 {[%emt 0:04:30]} 25. Rde1 {[%emt 0:03:03]} Re7 {[%emt 0:04:30]} 26. Rxe7 {[%emt 0:01:35]} Bxe7 {[%emt 0:00:00]} 27. Re1 {[%emt 0:01:47]} Bc5 {[%emt 0:02:00]} 28. Re6 {[%emt 0:02:44]} Rf8 {[%emt 0:02:30]} 29. c3 {[%emt 0:02:18]} Kd7 {[%emt 0:00:30]} 30. Re2 {[%emt 0:00:17]} g5 {[%emt 0:00:30]} 31. Bg3 {[%emt 0:01:10]} f5 {[%emt 0:06:30]} 32. d4 {[%emt 0:00:10]} Bd6 {[%emt 0:01:30]} 33. Bxd6 {[%emt 0:00:30]} Kxd6 {[%emt 0:00:00]} 34. Kd2 {[%emt 0:01:56]} Rh8 {[%emt 0:00:00]} 35. Kd3 {[%emt 0:00:53]} b5 {[%emt 0:02:30]} 36. b3 {[%emt 0:02:46]} Rh3+ {[%emt 0:00:30]} 37. Kd2 {[%emt 0:00:06]} g4 {[%emt 0:02:18]} 38. c4 {[%emt 0:01:00]} bxc4 {[%emt 0:02:20]} 39. bxc4 {[%emt 0:00:02]} Ra3 {[%emt 0:04:33]} 40. Ke1 {[%emt 0:00:43]} Rd3 {[%emt 0:04:03]} 41. d5 {[%emt 0:00:55]} Rd4 {[%emt 0:03:13]} 42. Re6+ {[%emt 0:00:56]} Kd7 {[%emt 0:00:27]} 43. Rf6 {[%emt 0:00:00]} f4 {[%emt 0:02:03]} 44. c5 {[%emt 0:00:42]} f3 {[%emt 0:00:43]} 45. Rf7+ {[%emt 0:02:17]} Kd8 {[%emt 0:02:21]} 46. Rf5 {[%emt 0:01:47]} Rc4 {[%emt 0:00:30]} 47. Rg5 {[%emt 0:00:34]} Kc8 {[%emt 0:02:25]} 48. c6 {[%emt 0:00:16]} Kd8 {[%emt 0:00:25]} 49. Rg8+ {[%emt 0:00:30]} Ke7 {[%emt 0:00:30]} 50. Rg7+ {[%emt 0:00:30]} Kd6 {[%emt 0:00:30]} 51. Rd7+ {[%emt 0:00:30]} Ke5 {[%emt 0:00:30]} 52. Rxc7 {[%emt 0:00:30]} Kxd5 {[%emt 0:00:30]} 53. Rxa7 {[%emt 0:00:30]} Kxc6 {[%emt 0:00:30]} 54. Rg7 {[%emt 0:00:30]} Kd5 {[%emt 0:00:30]} 55. Kf2 {[%emt 0:00:30]} Ke5 {[%emt 0:00:30]} 56. Re7+ {[%emt 0:00:30]} Kf6 {[%emt 0:00:30]} 57. Rh7 {[%emt 0:00:30]} Rc2+ {[%emt 0:00:30]} 58. Kf1 {[%emt 0:00:30]} Rxa2 {[%emt 0:00:30]} 59. Rh8 {[%emt 0:00:30]} Ra1+ {[%emt 0:00:30]} 60. Kf2 {[%emt 0:00:30]} Ra2+ {[%emt 0:00:30]} 61. Kf1 {[%emt 0:00:30]} Ra7 {[%emt 0:00:30]} 62. Kf2 {[%emt 0:00:30]} Kg7 {[%emt 0:00:30]} 63. Rh4 {[%emt 0:00:30]} Ra2+ {[%emt 0:00:30]} 64. Kf1 {[%emt 0:00:30]} Rg2 {[%emt 0:00:30]} 65. Rh5 {[%emt 0:00:30]} Kg6 {[%emt 0:00:30]} 66. Rh4 {[%emt 0:00:30]} Kf5 {[%emt 0:00:30]} 67. Rh8 {[%emt 0:00:30]} Ra2 {[%emt 0:00:30]} 68. Rf8+ {[%emt 0:00:30]} Ke5 {[%emt 0:00:30]} 69. Re8+ {[%emt 0:00:30]} Kf6 {[%emt 0:00:30]} 70. Rf8+ {[%emt 0:00:53]} Kg7 {[%emt 0:00:11]} 71. Rf4 {[%emt 0:00:10]} Ra1+ {[%emt 0:00:56]} 72. Kf2 {[%emt 0:00:30]} Ra2+ {[%emt 0:00:30]} 73. Kf1 {[%emt 0:00:30]} Rg2 {[%emt 0:00:00]} 74. h3 {[%emt 0:00:06]} 1/2-1/2